{"text_format":"3","workbook":"xlsx","n_sheets":1,"sheets":["Factura"],"not_rendered":{"images":1,"defined_names":14},"read":"whole","date_system":"1900"}

{"sheet":"Factura","index":0,"n_rows":33,"n_cols":6,"rows_kept":33,"merged":[[0,1,0,5],[1,1,1,5],[9,1,9,5],[10,1,10,2],[10,3,11,4],[10,5,11,5],[11,1,11,2],[12,1,12,2],[12,3,13,4],[12,5,13,5],[13,1,13,2],[14,1,14,2],[29,1,29,2],[30,1,31,2],[32,1,32,2]]}
[null,"FACTURA"]
[null,"Nombre de la empresa"]
[]
[null,"321 Avenida A",null,null,"Fecha:",{"$f":"TODAY()","v":"2022-12-26"}]
[null,"Portland, OR 12345",null,null,"N.º de factura",1111]
[null,"Teléfono: (206) 555-1163",null,null,"Para","Orden de compra n.° 123456"]
[null,"Fax: (206) 555-1164"]
[null,"someone@websitegoeshere.com"]
[]
[null,"Facturar a:"]
[null,"Natasha Jones",null,"Los artículos que superan este importe califican para obtener un descuento adicional",null,{"v":100,"d":"$100"}]
[null,"Belleza central"]
[null,"123 Main St.",null,"% de descuento",null,{"v":0.1,"d":"10%"}]
[null,"Manhattan, NY 98765"]
[null,"(321) 555-1234"]
[]
[null,"Cantidad","Descripción","Precio unitario","Importe","Descuento aplicado"]
[null,1,"Número de artículo 1",{"v":2,"d":"$2.00"},{"$f":"Importe","v":{"v":2,"d":"$2.00"}},{"$f":"Descuento_aplicado","v":0}]
[null,1,"Número de artículo 2",{"v":2,"d":"$2.00"},{"$f":"Importe","v":{"v":2,"d":"$2.00"}},{"$f":"Descuento_aplicado","v":0}]
[null,1,"Número de artículo 3",{"v":2,"d":"$2.00"},{"$f":"Importe","v":{"v":2,"d":"$2.00"}},{"$f":"Descuento_aplicado","v":0}]
[{"$nulls":4},{"$f":"Importe","v":0},{"$f":"Descuento_aplicado","v":0}]
[{"$nulls":4},{"$f":"Importe","v":0},{"$f":"Descuento_aplicado","v":0}]
[{"$nulls":4},{"$f":"Importe","v":0},{"$f":"Descuento_aplicado","v":0}]
[{"$nulls":4},{"$f":"Importe","v":0},{"$f":"Descuento_aplicado","v":0}]
[{"$nulls":4},{"$f":"Importe","v":0},{"$f":"Descuento_aplicado","v":0}]
[{"$nulls":4},{"$f":"Importe","v":0},{"$f":"Descuento_aplicado","v":0}]
[{"$nulls":4},{"$f":"Importe","v":0},{"$f":"Descuento_aplicado","v":0}]
[{"$nulls":4},{"$f":"Importe","v":0},{"$f":"Descuento_aplicado","v":0}]
[null,"Subtotal",null,null,{"$f":"SUBTOTAL(109,DetallesFactura[Importe])","v":{"v":6,"d":"$6.00"}}]
[null,"Haga todos los cheques pagaderos a <Nombre de la compañía>.",null,"Crédito ",{"v":1000,"d":"$1,000.00"}]
[null,"Si tiene alguna pregunta sobre esta factura, póngase en contacto con <Nombre> en <teléfono o correo>\n",null,"Impuesto ",{"v":0.098,"d":"9.80%"}]
[{"$nulls":3},"Descuento adicional ",{"v":0.12,"d":"12%"}]
[null,"¡Le agradecemos su confianza!",null,"Saldo pendiente ",{"$f":"Saldo_pendiente","v":{"v":-994.20256,"d":"-$994.20"}}]